fUSD/lending_fUSD_20260409
["ID","MTS","AMOUNT","RATE_DAILY","PERIOD"]
[420105466,1775679046653,-500.0,0.00013698,2]
[420105467,1775679046663,-500.0,0.00013698,2]
[420105468,1775679046673,-500.0,0.00013698,2]
[420105469,1775679046683,-500.0,0.00013698,2]
[420105470,1775679046692,-500.0,0.00013698,2]
[420105471,1775679046702,-500.0,0.00013698,2]
[420105472,1775679046712,-219.34257269,0.00013698,2]
[420105473,1775679046721,-150.0,0.00013699,2]
[420105474,1775679046730,-150.0,0.00013699,2]
[420105475,1775679046740,-150.0,0.00013699,2]
[420105476,1775679046749,-150.0,0.00013699,2]
[420105477,1775679046759,-2138.0,0.00013699,2]
[420105478,1775679046769,-150.0,0.00013699,2]
[420105480,1775679046779,-150.0,0.00013699,2]
[420105482,1775679046790,-200.0,0.00013699,2]
[420105484,1775679046800,-218.63,0.00013699,2]
[420105485,1775679046810,-501.46029237,0.00013699,2]
[420105486,1775679046820,-500.0,0.00013699,2]
[420105487,1775679046830,-527.83727023,0.00013699,2]
[420105488,1775679046839,-500.0,0.00013699,2]
[420105489,1775679046849,-500.0,0.00013699,2]
[420105490,1775679046859,-500.0,0.00013699,2]
[420105491,1775679046868,-500.0,0.00013699,2]
[420105492,1775679046877,-500.0,0.00013699,2]
[420105493,1775679046888,-500.0,0.00013699,2]
[420105494,1775679046898,-500.0,0.00013699,2]
[420105495,1775679046908,-474.64837932,0.00013699,2]
[420105496,1775679046918,-500.0,0.00013699,2]
[420105497,1775679046928,-165.08001948,0.00013699,2]
[420105498,1775679046938,-500.0,0.00013699,2]
[420105499,1775679046947,-500.0,0.00013699,2]
[420105500,1775679046957,-500.0,0.00013699,2]
[420105501,1775679046967,-500.0,0.00013699,2]
[420105502,1775679046977,-500.0,0.00013699,2]
[420105503,1775679046987,-500.0,0.00013699,2]
[420105504,1775679046997,-500.73011575,0.00013699,2]
[420105507,1775679047007,-192.86830962,0.00013699,2]
[420105510,1775679047017,-500.0,0.00013699,2]
[420105512,1775679047026,-500.0,0.00013699,2]
[420105514,1775679047036,-500.0,0.00013699,2]
[420105516,1775679047046,-500.0,0.00013699,2]
[420105517,1775679047057,-164.42313659,0.00013699,2]
[420105518,1775679047067,-288.28066678,0.00013699,2]
[420105519,1775679047076,-163.86569709,0.00013699,2]
[420105520,1775679047086,-501.02489372,0.00013699,2]
[420105521,1775679047096,-500.0,0.00013699,2]
[420105522,1775679047118,-500.0,0.00013699,2]
[420105523,1775679047128,-500.0,0.00013699,2]
[420105524,1775679047139,-500.0,0.00013699,2]
[420105525,1775679047150,-153.78,0.00013699,2]
[420105526,1775679047160,-1778.0,0.00013699,2]
[420105527,1775679047170,-1778.0,0.00013699,2]
[420105528,1775679047180,-1778.0,0.00013699,2]
[420105529,1775679047191,-1778.0,0.00013699,2]
[420105530,1775679047201,-1778.0,0.00013699,2]
[420105531,1775679047211,-1778.0,0.00013699,2]
[420105532,1775679047221,-1778.0,0.00013699,2]
[420105533,1775679047232,-1778.0,0.00013699,2]
[420105534,1775679047242,-1778.0,0.00013699,2]
[420105535,1775679047252,-1778.0,0.00013699,2]
[420105536,1775679047262,-1778.0,0.00013699,2]
[420105537,1775679047272,-1778.0,0.00013699,2]
[420105538,1775679047283,-1778.0,0.00013699,2]
[420105539,1775679047293,-1778.0,0.00013699,2]
[420105540,1775679047304,-1778.0,0.00013699,2]
[420105541,1775679047315,-1778.0,0.00013699,2]
[420105542,1775679047325,-1778.0,0.00013699,2]
[420105543,1775679047335,-1778.0,0.00013699,2]
[420105544,1775679047346,-1778.0,0.00013699,2]
[420105545,1775679047356,-1778.0,0.00013699,2]
[420105546,1775679047366,-1778.0,0.00013699,2]
[420105547,1775679047376,-1778.0,0.00013699,2]
[420105548,1775679047386,-1778.0,0.00013699,2]
[420105549,1775679047395,-1797.43616336,0.00013699,2]
[420105550,1775679047406,-500.0,0.00013708,2]
[420105551,1775679047416,-200.0,0.00013761,2]
[420105552,1775679047426,-187.78006525,0.00013761,2]
[420105553,1775679047436,-1280.88388878,0.00013761,2]
[420105554,1775679047445,-771.01748645,0.00013761,2]
[420105555,1775679047457,-591.41950389,0.00013761,2]
[420105556,1775679047467,-181.08010149,0.00013761,2]
[420105557,1775679047477,-500.0,0.00013763,2]
[420105558,1775679047488,-786.02,0.00013777,2]
[420105559,1775679047497,-229.5676,0.000138,2]
[420105560,1775679047508,-1900.0,0.00013808,2]
[420105561,1775679047518,-500.0,0.00013818,2]
[420105562,1775679047528,-7961.64208253,0.00013826,2]
[420105563,1775679047540,-200.0,0.00013836,2]
[420105564,1775679047550,-1432.06,0.00013862,2]
[420105565,1775679047561,-160.0,0.00013866,2]
[420105566,1775679047572,-500.0,0.00013873,2]
[420105567,1775679047582,-2000.0,0.00013892,2]
[420105568,1775679047593,-973.12,0.000139,2]
[420105569,1775679047604,-6453.0,0.00013913,2]
[420105570,1775679047616,-500.0,0.00013928,2]
[420105571,1775679047626,-150.0,0.00013973,2]
[420105572,1775679047637,-150.0,0.00013973,2]
[420105573,1775679047647,-150.0,0.00013973,2]
[420105574,1775679047659,-150.0,0.00013973,2]
[420105575,1775679047669,-500.0,0.00013983,2]
[420105576,1775679047679,-786.02,0.00014051,2]
[420105577,1775679047689,-2129.0,0.00014077,2]
[420105578,1775679047699,-253.29,0.00014093,2]
[420105579,1775679047710,-501.0,0.00014129,2]
[420105580,1775679047722,-1068.5,0.00014223,2]
[420105581,1775679047947,-150.0,0.00014247,2]
[420105582,1775679047960,-150.0,0.00014247,2]
[420105583,1775679047971,-150.0,0.00014247,2]
[420105584,1775679047981,-150.0,0.00014247,2]
[420105585,1775679047992,-503.55298516,0.00014247,2]
[420105586,1775679048002,-501.03865935,0.00014247,2]
[420105587,1775679048012,-1000.0,0.00014247,2]
[420105588,1775679048022,-1000.0,0.00014247,2]
[420105589,1775679048032,-1000.0,0.00014247,2]
[420105590,1775679048043,-1000.0,0.00014247,2]
[420105591,1775679048054,-1000.0,0.00014247,2]
[420105592,1775679048065,-1000.0,0.00014247,2]
[420105593,1775679048076,-362.28838287,0.00014247,2]
[420105594,1775679048087,-1000.0,0.00014247,2]
[420105595,1775679048097,-1000.0,0.00014247,2]
[420105596,1775679048108,-244.99358581,0.00014247,2]
[420105597,1775679048118,-1000.0,0.00014247,2]
[420105598,1775679048129,-1000.0,0.00014247,2]
[420105599,1775679048139,-1000.0,0.00014247,2]
[420105600,1775679048150,-1000.0,0.00014247,2]
[420105601,1775679048160,-1000.0,0.00014247,2]
[420105602,1775679048170,-1000.0,0.00014247,2]
[420105603,1775679048181,-792.48284775,0.00014247,2]
[420105604,1775679048191,-1000.0,0.00014247,2]
[420105605,1775679048201,-1000.0,0.00014247,2]
[420105606,1775679048211,-27840.64434436,0.00014287,2]
[420105607,1775679048221,-57979.31053289,0.00014287,2]
[420105608,1775679048231,-200.0,0.00014309,2]
[420105609,1775679048240,-194.72792766,0.00014309,2]
[420105610,1775679048250,-1328.27659266,0.00014309,2]
[420105611,1775679048260,-799.54513345,0.00014309,2]
[420105612,1775679048270,-187.78006525,0.00014309,2]
[420105613,1775679048280,-500.0,0.00014315,2]
[420105614,1775679048290,-500.0,0.00014315,2]
[420105615,1775679048299,-151.0,0.00014316,2]
[420105616,1775679048309,-786.02,0.00014325,2]
[420105617,1775679048319,-985.91,0.00014384,2]
[420105618,1775679048329,-220.566361,0.00014384,2]
[420105619,1775679048338,-1573.0,0.000144,2]
[420105620,1775679048348,-1068.5,0.00014432,2]
[420105621,1775679048358,-662.26960582,0.00014492,4]
[420105622,1775679048367,-500.0,0.00014506,2]
[420105623,1775679048378,-2000.0,0.00014506,2]
[420105624,1775679048388,-786.02,0.00014599,2]
[420105625,1775679048398,-1068.5,0.0001464,2]
[420105626,1775679048408,-985.91,0.00014658,2]
[420105627,1775679048417,-162.0,0.0001472,2]
[420105628,1775679048426,-162.0,0.0001472,2]
[420105629,1775679048435,-392.40536827,0.0001475,2]
[420105630,1775679048445,-540.97569897,0.0001475,2]
[420105631,1775679048455,-9730.48678942,0.0001475,2]
[420105632,1775679048464,-500.0,0.00014794,2]
[420105633,1775679048474,-500.0,0.00014794,2]
[420105634,1775679048484,-500.0,0.00014794,2]
[420105635,1775679048493,-1079.80120854,0.00014795,2]
[420105636,1775679048503,-1500.0,0.00014795,2]
[420105637,1775679048513,-1500.0,0.00014795,2]
[420105638,1775679048522,-1500.0,0.00014795,2]
[420105639,1775679048532,-644.24089955,0.00014795,2]
[420105640,1775679048541,-1018.40309967,0.00014795,2]
[420105641,1775679048551,-1315.21682164,0.00014795,2]
[420105642,1775679048562,-1255.90284256,0.00014795,2]
[420105643,1775679048572,-1500.0,0.00014795,2]
[420105644,1775679048582,-1500.0,0.00014795,2]
[420105645,1775679048592,-1500.0,0.00014795,2]
[420105646,1775679048602,-892.34268442,0.00014795,2]
[420105647,1775679048611,-1430.82314799,0.00014795,2]
[420105648,1775679048621,-1500.0,0.00014795,2]
[420105649,1775679048630,-502.36079739,0.00014795,2]
[420105650,1775679048641,-956.0,0.00014795,2]
[420105651,1775679048651,-3449.0,0.000148,2]
[420105652,1775679048661,-1600.0,0.00014815,2]
[420105653,1775679048671,-1409.396047,0.00014821,7]
[420105654,1775679048681,-1068.5,0.00014849,2]
[420105655,1775679048691,-200.0,0.00014857,2]
[420105656,1775679048701,-1377.42282659,0.00014857,2]
[420105657,1775679048710,-743.50770149,0.00014857,2]
[420105658,1775679048720,-194.72792766,0.00014857,2]
[420105659,1775679048730,-7961.64208253,0.00014863,2]
[420105660,1775679048740,-786.02,0.00014873,2]
[420105661,1775679048755,-1716.429521,0.00014891,7]
[420105662,1775679048765,-14300.0,0.000149,5]
[420105663,1775679048776,-1432.06,0.00014903,2]
[420105664,1775679048786,-3000.0,0.00014904,2]
[420105665,1775679048797,-883.72,0.00014932,2]
[420105666,1775679048807,-439.688333,0.00014953,7]
[420105667,1775679048817,-641.635235,0.00014953,2]
[420105668,1775679048827,-1000.0,0.00014961,2]
[420105669,1775679048836,-150.0,0.00014968,2]
[420105670,1775679048846,-150.0,0.00014994,2]
[420105671,1775679048856,-2756.92717347,0.00015,2]
[420105672,1775679048866,-160.0,0.00015,2]
[420105673,1775679048876,-1007.07827575,0.00015,2]
[420105674,1775679048885,-150.0,0.00015038,2]
[420105675,1775679048895,-1000.0,0.00015045,2]
[420105676,1775679048905,-1068.5,0.00015057,2]
[420105677,1775679048915,-152.1118183,0.00015068,2]
[420105678,1775679048925,-800.91792691,0.00015068,2]
[420105679,1775679048935,-1000.0,0.00015073,2]
[420105680,1775679048945,-27840.64434436,0.00015093,2]
[420105681,1775679048955,-57979.31053289,0.00015093,2]
[420105682,1775679048964,-477.15533545,0.00015108,2]
[420105683,1775679048974,-150.0,0.00015135,2]
[420105684,1775679048984,-524.53,0.00015147,2]
[420105685,1775679048994,-501.0,0.00015158,3]
[420105686,1775679049004,-1000.0,0.00015177,2]
[420105687,1775679049014,-6976.45084756,0.00015178,2]
[420105688,1775679049023,-1900.0,0.00015178,2]
[420105689,1775679049033,-500.0,0.00015181,2]
[420105690,1775679049044,-994.01934182,0.00015182,2]
[420105691,1775679049054,-1096.35156224,0.00015189,2]
[420105692,1775679049063,-1025.97103761,0.00015189,2]
[420105693,1775679049074,-1126.36357752,0.00015189,2]
[420105694,1775679049083,-1143.34897163,0.00015189,2]
[420105695,1775679049093,-1029.17912893,0.00015189,2]
[420105696,1775679049103,-1003.39607175,0.00015189,2]
[420105697,1775679049113,-1110.37915238,0.00015189,2]
[420105698,1775679049122,-1052.81432766,0.00015189,2]
[420105699,1775679049132,-486.87116519,0.0001519,2]
[420105700,1775679049141,-908.0,0.00015191,2]
[420105701,1775679049151,-776.0,0.00015191,2]
[420105702,1775679049160,-1000.0,0.00015197,2]
[420105703,1775679049170,-500.0,0.00015199,2]
[420105704,1775679049179,-500.0,0.00015199,2]
[420105705,1775679049189,-310.58484481,0.000152,2]
[420105706,1775679049198,-264.5557,0.000152,2]
[420105707,1775679049207,-5000.0,0.000152,2]
[420105708,1775679049217,-5000.0,0.000152,2]
[420105709,1775679049227,-1311.204454,0.000152,2]
[420105710,1775679049236,-5419.21,0.00015205,2]
[420105711,1775679049246,-500.0,0.00015208,2]
[420105712,1775679049256,-500.0,0.00015208,2]
[420105713,1775679049266,-223.3967903,0.00015208,2]
[420105714,1775679049275,-1000.0,0.0001521,2]
[420105715,1775679049285,-1217.0,0.00015222,2]
[420105716,1775679049295,-1000.0,0.00015223,2]
[420105717,1775679049305,-926.0,0.00015226,2]
[420105718,1775679049314,-415.0,0.00015236,2]
[420105719,1775679049324,-6022.0,0.00015236,2]
[420105720,1775679049333,-500.0,0.00015241,2]
[420105721,1775679049343,-500.0,0.00015241,2]
[420105722,1775679049353,-500.0,0.00015241,2]
[420105723,1775679049363,-500.0,0.00015241,2]
[420105724,1775679049372,-500.0,0.00015241,2]
[420105725,1775679049382,-500.0,0.00015241,2]
[420105726,1775679049392,-500.0,0.00015241,2]
[420105727,1775679049402,-500.0,0.00015241,2]
[420105728,1775679049411,-1000.0,0.00015244,2]
[420105729,1775679049421,-1068.5,0.00015266,2]
[420105730,1775679049431,-1000.0,0.00015266,2]
[420105731,1775679049440,-1000.0,0.00015272,2]
[420105732,1775679049450,-350.0,0.00015283,2]
[420105733,1775679049460,-475.76,0.00015284,2]
[420105734,1775679049470,-1000.0,0.00015301,2]
[420105735,1775679049480,-500.27274026,0.00015303,2]
[420105736,1775679049490,-308.60154884,0.00015303,2]
[420105737,1775679049502,-9035.0,0.00015305,2]
[420105738,1775679049513,-1000.0,0.00015311,2]
[420105739,1775679049523,-1432.06,0.00015342,2]
[420105740,1775679049532,-2000.0,0.00015342,2]
[420105741,1775679049542,-2000.0,0.00015342,2]
[420105742,1775679049552,-2000.0,0.00015342,2]
[420105743,1775679049562,-2000.0,0.00015342,2]
[420105744,1775679049572,-2000.0,0.00015342,2]
[420105745,1775679049582,-2000.0,0.00015342,2]
[420105746,1775679049594,-197.87652131,0.00015342,2]
[420105747,1775679049604,-1000.0,0.00015377,2]
[420105748,1775679049614,-150.0,0.0001539,2]
[420105749,1775679049624,-2000.0,0.000154,2]
[420105750,1775679049634,-1000.0,0.00015405,2]
[420105751,1775679049644,-162.60419222,0.00015405,2]
[420105752,1775679049654,-500.0,0.00015405,2]
[420105753,1775679049663,-501.53334874,0.00015405,2]
[420105754,1775679049673,-500.0,0.00015405,2]
[420105755,1775679049684,-200.0,0.00015405,2]
[420105756,1775679049694,-1428.38747117,0.00015405,2]
[420105757,1775679049704,-201.93286099,0.00015405,2]
[420105758,1775679049715,-1000.0,0.00015409,2]
[420105759,1775679049725,-1000.0,0.00015423,2]
[420105760,1775679049734,-150.0,0.00015426,2]
[420105761,1775679049744,-150.0,0.00015432,2]
[420105762,1775679049753,-150.0,0.00015432,2]
[420105763,1775679049763,-150.0,0.00015432,2]
[420105764,1775679049773,-150.0,0.00015432,2]
[420105765,1775679049783,-150.0,0.00015432,2]
[420105766,1775679049792,-150.0,0.00015432,2]
[420105767,1775679049802,-150.0,0.00015432,2]
[420105768,1775679049811,-150.0,0.00015432,2]
[420105769,1775679049821,-150.0,0.00015432,2]
[420105770,1775679049831,-150.0,0.00015432,2]
[420105771,1775679049841,-1347.0,0.00015432,2]
[420105772,1775679049851,-1046.0,0.00015432,2]
[420105773,1775679049861,-1264.0,0.00015432,2]
[420105774,1775679049871,-150.0,0.00015432,2]
[420105775,1775679049881,-1000.0,0.00015437,2]
[420105776,1775679049891,-10000.0,0.00015438,2]
[420105777,1775679049901,-1000.0,0.00015444,2]
[420105778,1775679049910,-1000.0,0.00015465,2]
[420105779,1775679049921,-1904.19,0.00015471,2]
[420105780,1775679049931,-9596.7,0.00015471,2]
[420105781,1775679049941,-1068.5,0.00015474,2]
[420105782,1775679049951,-963.0,0.00015484,2]
[420105783,1775679049961,-1432.06,0.00015499,2]
[420105784,1775679049972,-1432.06,0.00015499,2]
[420105785,1775679049982,-1432.06,0.00015499,2]
[420105786,1775679049992,-1432.06,0.00015499,2]
[420105787,1775679050002,-1432.06,0.00015499,2]
[420105788,1775679050012,-1432.18,0.00015499,2]
[420105789,1775679050023,-500.0,0.00015499,2]
[420105790,1775679050032,-433.12,0.00015499,2]
[420105791,1775679050043,-392.00957995,0.00015499,2]
[420105792,1775679050053,-500.0,0.00015499,2]
[420105793,1775679050062,-500.0,0.00015499,2]
[420105794,1775679050072,-500.0,0.00015499,2]
[420105795,1775679050081,-500.0,0.00015499,2]
[420105796,1775679050091,-156.8971398,0.000155,2]
[420105797,1775679050101,-84895.28463345,0.000155,7]
[420105798,1775679050110,-150.0,0.00015503,2]
[420105799,1775679050121,-4000.0,0.00015507,2]
[420105800,1775679050130,-150.0,0.0001551,2]
[420105801,1775679050140,-150.0,0.00015512,2]
[420105802,1775679050151,-954.0,0.00015538,2]
[420105803,1775679050161,-1000.0,0.00015539,2]
[420105804,1775679050171,-1000.0,0.00015544,2]
[420105805,1775679050181,-350.0,0.00015552,2]
[420105806,1775679050190,-588.73506502,0.00015559,2]
[420105807,1775679050200,-954.0,0.00015565,2]
[420105808,1775679050210,-1000.0,0.00015574,2]
[420105809,1775679050220,-17800.0,0.000156,5]
[420105810,1775679050230,-1450.0,0.000156,2]
[420105811,1775679050241,-1450.0,0.000156,2]
[420105812,1775679050252,-1450.0,0.000156,2]
[420105813,1775679050262,-1450.0,0.000156,2]
[420105814,1775679050272,-1450.0,0.000156,2]
[420105815,1775679050282,-1450.0,0.000156,2]
[420105816,1775679050292,-1450.0,0.000156,2]
[420105817,1775679050302,-1450.0,0.000156,2]
[420105818,1775679050312,-1450.0,0.000156,2]
[420105819,1775679050322,-1350.0,0.000156,2]
[420105820,1775679050331,-1000.0,0.000156,2]
[420105821,1775679050340,-940.0,0.000156,2]
[420105822,1775679050350,-1000.0,0.00015617,2]
[420105823,1775679050360,-1372.65078494,0.00015621,2]
[420105824,1775679050369,-1000.0,0.00015635,2]
[420105825,1775679050379,-150.0,0.00015639,2]
[420105826,1775679050389,-1000.0,0.00015652,2]
[420105827,1775679050399,-500.0,0.00015658,2]
[420105828,1775679050409,-500.0,0.00015658,2]
[420105829,1775679050419,-500.0,0.00015658,2]
[420105830,1775679050429,-500.0,0.00015658,2]
[420105831,1775679050438,-500.0,0.00015658,2]
[420105832,1775679050449,-500.0,0.00015658,2]
[420105833,1775679050459,-500.0,0.00015658,2]
[420105834,1775679050469,-500.0,0.00015658,2]
[420105835,1775679050478,-500.0,0.00015658,2]
[420105836,1775679050489,-659.52,0.00015658,2]
[420105837,1775679050498,-246.96258362,0.00015674,2]
[420105838,1775679050508,-3727.97775672,0.0001568,2]
[420105839,1775679050518,-2000.0,0.0001568,2]
[420105840,1775679050527,-2000.0,0.0001568,2]
[420105841,1775679050537,-2000.0,0.0001568,2]
[420105842,1775679050546,-2000.0,0.0001568,2]
[420105843,1775679050556,-2000.0,0.0001568,2]
[420105844,1775679050566,-2000.0,0.0001568,2]
[420105845,1775679050575,-2000.0,0.0001568,2]
[420105846,1775679050584,-2000.0,0.0001568,2]
[420105847,1775679050593,-2000.0,0.0001568,2]
[420105848,1775679050602,-2000.0,0.0001568,2]
[420105849,1775679050613,-1014.42369891,0.0001568,2]
[420105850,1775679050622,-1012.15443008,0.0001568,2]
[420105851,1775679050632,-1035.87072717,0.0001568,2]
[420105852,1775679050641,-1137.65877299,0.0001568,2]
[420105853,1775679050651,-1040.02926566,0.0001568,2]
[420105854,1775679050661,-1053.09245854,0.0001568,2]
[420105855,1775679050671,-1135.25351189,0.0001568,2]
[420105856,1775679050681,-1147.30974715,0.0001568,2]
[420105857,1775679050691,-1124.17075362,0.0001568,2]
[420105858,1775679050701,-1094.5701792,0.0001568,2]
[420105859,1775679050711,-1126.31590056,0.0001568,2]
[420105860,1775679050720,-1079.61836236,0.0001568,2]
[420105861,1775679050730,-1071.29466174,0.0001568,2]
[420105862,1775679050741,-1089.58170618,0.0001568,2]
[420105863,1775679050751,-1083.70776154,0.0001568,2]
[420105864,1775679050761,-1057.20779881,0.0001568,2]
[420105865,1775679050772,-1068.5,0.00015683,2]
[420105866,1775679050782,-1269.46,0.00015684,2]
[420105867,1775679050792,-994.01934182,0.00015693,2]
[420105868,1775679050802,-10000.0,0.000157,2]
[420105869,1775679050812,-2010.0,0.000157,2]
[420105870,1775679050821,-3500.0,0.000157,5]
[420105871,1775679050831,-1000.0,0.00015701,2]
[420105872,1775679050841,-500.0,0.00015708,2]
[420105873,1775679050851,-452268.57417094,0.0001571,2]
[420105874,1775679052051,-1822.82670332,0.0001571,2]
[420105875,1775679052314,-7983.0733731,0.0001571,2]
[420105876,1775679052829,-1583.1479154,0.00012227,2]
[420105877,1775679052839,-2471.0,0.00012236,2]
[420105878,1775679052848,-538.0,0.00013151,2]
[420105879,1775679052859,-350.72964164,0.00013699,2]
[420105880,1775679052869,-2471.0,0.00015236,2]
[420105881,1775679052879,-3736731.3937942,0.0001571,2]
[420105882,1775679053004,-44700.0,0.0001571,2]
[420105883,1775679053038,-34.09755441,0.0001571,2]
[420105884,1775679053051,-338.004,0.0001571,2]
[420105885,1775679053083,-305.11934148,0.0001571,2]
[420105886,1775679053394,-538.0,0.00013151,2]
[420105887,1775679053405,-1824.12788691,0.0001571,2]
[420105888,1775679053417,-1165.72592619,0.0001571,2]
[420105889,1775679053429,-1139.33803329,0.0001571,2]
[420105890,1775679053470,-229.75,0.0001359,2]
[420105891,1775679053480,-15393.33012852,0.0001571,2]
[420105892,1775679054124,-2190.4621032,0.0001571,2]
[420105893,1775679054137,-530.77985321,0.0001571,2]
[420105894,1775679054434,-550.4889753,0.00013151,2]
[420105895,1775679054444,-1578.19409306,0.0001571,2]
[420105896,1775679054497,-41131.03897419,0.0001571,2]
[420105897,1775679054510,-42884.46414847,0.0001571,2]
[420105898,1775679054523,-11546.86014265,0.0001571,2]
[420105899,1775679054534,-350.88499915,0.0001571,2]
[420105900,1775679054558,-1449.26927114,0.0001571,2]
[420105903,1775680044095,-250.0,8.639e-05,2]
[420105904,1775680044118,-37.66541526,9.123e-05,2]
[420105910,1775680170083,-150.0,9.33e-05,2]
[420105911,1775680170105,-162.13377201,9.416e-05,2]
[420105917,1775680231419,-87.86622799,9.416e-05,2]
[420105918,1775680231434,-250.0,0.00010057,2]
[420105919,1775680231445,-250.0,0.00010263,2]
[420105920,1775680231455,-397.78022094,0.00010358,2]
[420105921,1775680231556,-2368.72,0.00010358,2]
[420105922,1775680231568,-1095.2419208,0.00010358,2]
[420105923,1775680231681,-1138.25785826,0.00010358,2]
[420105924,1775680231691,-300.0,0.00011999,2]
[420105925,1775680231701,-150.0,0.00011999,2]
[420105926,1775680231711,-419.0,0.00012,2]
[420105927,1775680231721,-9999.99,0.00012,2]
[420105928,1775680231730,-299.99,0.00012,2]
[420105929,1775680231738,-150.99,0.00012,2]
[420105930,1775680231748,-22728.46278375,0.00012,2]
[420105931,1775680231760,-355.00000001,0.00012,2]
[420105932,1775680231772,-571.5092,0.00012,2]
[420105933,1775680231783,-885.56582339,0.00012,2]
[420105934,1775680231795,-367.55852767,0.00012,2]
[420105935,1775680231967,-8810.42366518,0.00012,2]
[420105936,1775680231976,-9077.466239,0.00012227,2]
[420105937,1775680231986,-250.0,0.00012328,2]
[420105938,1775680231996,-229.75,0.00012363,2]
[420105939,1775680232005,-696.5855,0.00012589,2]
[420105940,1775680232015,-150.0,0.000126,2]
[420105941,1775680232024,-151.0,0.00012689,2]
[420105942,1775680232034,-151.0,0.00012689,2]
[420105943,1775680232043,-151.0,0.00012689,2]
[420105944,1775680232053,-151.0,0.00012689,2]
[420105945,1775680232063,-151.0,0.00012689,2]
[420105946,1775680232072,-151.0,0.00012689,2]
[420105947,1775680232082,-151.0,0.00012689,2]
[420105948,1775680232092,-151.0,0.00012689,2]
[420105949,1775680232100,-151.0,0.00012689,2]
[420105950,1775680232110,-151.0,0.00012689,2]
[420105951,1775680232119,-151.0,0.00012689,2]
[420105952,1775680232133,-151.0,0.00012689,2]
[420105953,1775680232143,-151.0,0.00012689,2]
[420105954,1775680232152,-151.0,0.00012689,2]
[420105955,1775680232162,-151.0,0.00012689,2]
[420105956,1775680232172,-1337.30371515,0.00012689,2]
[420105957,1775680232181,-1852.42,0.00012781,2]
[420105958,1775680232191,-438.97411413,0.00012931,2]
[420105959,1775680232202,-500.0,0.00012931,2]
[420105960,1775680232212,-150.0,0.00012933,2]
[420105961,1775680232222,-1264.0,0.00012933,2]
[420105962,1775680232232,-926.0,0.00012933,2]
[420105963,1775680232242,-1217.0,0.00012933,2]
[420105964,1775680232252,-6022.0,0.00012933,2]
[420105965,1775680232262,-3636.382,0.00012933,2]
[420105966,1775680232273,-250.0,0.00013,2]
[420105967,1775680232283,-255.0,0.00013079,2]
[420105968,1775680232293,-501.0,0.000131,2]
[420105969,1775680232303,-420.0,0.00013172,2]
[420105970,1775680232313,-200.0,0.00013307,2]
[420105971,1775680232323,-500.0,0.00013425,2]
[420105972,1775680232333,-500.0,0.00013425,2]
[420105973,1775680232343,-150.0,0.00013425,2]
[420105974,1775680232353,-500.0,0.00013425,2]
[420105975,1775680232363,-150.0,0.00013425,2]
[420105976,1775680232901,-644.57907854,0.00013425,2]
[420105977,1775680232911,-150.0,0.00013425,2]
[420105978,1775680232920,-150.0,0.00013425,2]
[420105979,1775680232929,-500.0,0.00013425,2]
[420105980,1775680232939,-500.0,0.00013425,2]
[420105981,1775680232950,-150.0,0.00013425,2]
[420105982,1775680232959,-500.0,0.00013425,2]
[420105983,1775680232969,-500.0,0.00013425,2]
[420105984,1775680232978,-150.0,0.00013425,2]
[420105985,1775680232988,-500.0,0.00013425,2]
[420105986,1775680232997,-150.0,0.00013425,2]
[420105987,1775680233007,-500.0,0.00013425,2]